fUSD/lending_fUSD_20240404
["ID","MTS","AMOUNT","RATE_DAILY","PERIOD"]
[321439063,1712190690132,-150.0,0.00055067,14]
[321439064,1712190690141,-500.0,0.00055068,120]
[321439065,1712190690151,-500.0,0.00055068,120]
[321439066,1712190690161,-500.0,0.00055068,120]
[321439067,1712190690170,-508.05247887,0.00055068,120]
[321439068,1712190690181,-500.0,0.00055068,120]
[321439069,1712190690190,-505.27381095,0.00055068,120]
[321439070,1712190690200,-507.14346605,0.00055068,120]
[321439071,1712190690210,-509.85428352,0.00055068,120]
[321439072,1712190690220,-500.0,0.00055068,120]
[321439073,1712190690229,-500.0,0.00055068,120]
[321439074,1712190690238,-500.0,0.00055068,120]
[321439075,1712190690248,-500.0,0.00055068,120]
[321439076,1712190690257,-512.48304103,0.00055068,120]
[321439077,1712190690267,-500.0,0.00055068,120]
[321439078,1712190690276,-545.93086067,0.00055068,120]
[321439079,1712190690286,-525.86917947,0.00055068,120]
[321439080,1712190690295,-511.52850941,0.00055068,120]
[321439081,1712190690304,-500.0,0.00055068,120]
[321439082,1712190690313,-508.75142508,0.00055068,120]
[321439083,1712190690323,-500.0,0.00055068,120]
[321439084,1712190690332,-508.252099,0.00055068,120]
[321439085,1712190690341,-508.3253165,0.00055068,120]
[321439086,1712190690350,-500.0,0.00055068,120]
[321439087,1712190690359,-506.2314857,0.00055068,120]
[321439088,1712190690369,-505.2088939,0.00055068,120]
[321439089,1712190690379,-500.0,0.00055068,120]
[321439090,1712190690389,-509.04517111,0.00055068,120]
[321439091,1712190690398,-500.0,0.00055068,30]
[321439092,1712190690407,-500.0,0.00055068,120]
[321439093,1712190690417,-500.0,0.00055068,120]
[321439094,1712190690426,-1027.84,0.00055068,120]
[321439095,1712190690435,-539.18,0.00055068,120]
[321439096,1712190690444,-500.0,0.00055068,120]
[321439097,1712190690454,-513.28,0.00055068,120]
[321439098,1712190690463,-705.27,0.00055068,120]
[321439099,1712190690472,-533.57913989,0.00055068,120]
[321439100,1712190690482,-500.0,0.00055068,120]
[321439101,1712190690491,-510.42296223,0.00055068,120]
[321439102,1712190690500,-500.0,0.00055068,120]
[321439103,1712190690509,-500.0,0.00055068,120]
[321439104,1712190690519,-500.0,0.00055068,120]
[321439105,1712190690528,-500.0,0.00055068,120]
[321439106,1712190690537,-500.0,0.00055068,120]
[321439107,1712190690547,-500.0,0.00055068,120]
[321439108,1712190690556,-500.0,0.00055068,120]
[321439109,1712190690566,-618.99941599,0.00055068,120]
[321439110,1712190690575,-500.0,0.00055068,120]
[321439111,1712190690585,-659.49,0.00055068,120]
[321439112,1712190690594,-704.66,0.00055068,120]
[321439113,1712190690604,-522.19203692,0.00055068,120]
[321439114,1712190690613,-500.0,0.00055068,120]
[321439115,1712190690622,-200.0,0.00055068,10]
[321439116,1712190690632,-500.0,0.00055068,120]
[321439117,1712190690642,-500.0,0.00055068,120]
[321439118,1712190690652,-500.0,0.00055068,120]
[321439119,1712190690661,-675.72,0.00055068,120]
[321439120,1712190690671,-500.0,0.00055068,120]
[321439121,1712190690681,-500.0,0.00055068,120]
[321439122,1712190690691,-500.0,0.00055068,120]
[321439123,1712190690701,-1000.0,0.00055068,30]
[321439124,1712190690710,-500.0,0.00055068,120]
[321439125,1712190690720,-500.0,0.00055068,120]
[321439126,1712190690730,-500.0,0.00055068,120]
[321439127,1712190690740,-590.49,0.00055068,120]
[321439128,1712190690750,-686.97,0.00055068,120]
[321439129,1712190690759,-500.0,0.00055068,120]
[321439130,1712190690769,-500.0,0.00055068,120]
[321439131,1712190690778,-500.0,0.00055068,120]
[321439132,1712190690787,-500.0,0.00055068,120]
[321439133,1712190690797,-500.0,0.00055068,120]
[321439134,1712190690806,-500.0,0.00055068,120]
[321439135,1712190690816,-500.0,0.00055068,120]
[321439136,1712190690826,-2000.0,0.00055068,30]
[321439137,1712190690836,-500.0,0.00055068,120]
[321439138,1712190690846,-500.0,0.00055068,120]
[321439139,1712190690856,-500.0,0.00055068,120]
[321439140,1712190690866,-500.0,0.00055068,120]
[321439141,1712190690876,-500.0,0.00055068,2]
[321439142,1712190690886,-500.0,0.00055068,120]
[321439143,1712190690895,-500.0,0.00055068,120]
[321439144,1712190690904,-500.0,0.00055068,120]
[321439145,1712190690915,-500.0,0.00055068,120]
[321439146,1712190690924,-642.8,0.00055068,120]
[321439147,1712190690934,-634.62,0.00055068,120]
[321439148,1712190690943,-500.0,0.00055068,120]
[321439149,1712190690953,-500.0,0.00055068,120]
[321439150,1712190690963,-500.0,0.00055068,120]
[321439151,1712190690973,-500.0,0.00055068,120]
[321439152,1712190690982,-733.94,0.00055068,120]
[321439153,1712190690991,-544.8439429,0.00055068,120]
[321439154,1712190691001,-500.0,0.00055068,120]
[321439155,1712190691010,-515.42406241,0.00055068,120]
[321439156,1712190691020,-500.0,0.00055068,120]
[321439157,1712190691029,-838.66,0.00055068,120]
[321439158,1712190691039,-512.4378938,0.00055068,120]
[321439159,1712190691049,-558.23,0.00055068,120]
[321439160,1712190691059,-500.0,0.00055068,120]
[321439161,1712190691068,-519.01344527,0.00055068,120]
[321439162,1712190691081,-500.0,0.00055068,120]
[321439163,1712190691091,-500.0,0.00055068,120]
[321439164,1712190691101,-523.71125148,0.00055068,120]
[321439165,1712190691110,-550.62622301,0.00055068,120]
[321439166,1712190691121,-500.0,0.00055068,120]
[321439167,1712190691131,-500.0,0.00055068,120]
[321439168,1712190691141,-500.0,0.00055068,120]
[321439169,1712190691151,-500.0,0.00055068,120]
[321439170,1712190691161,-500.0,0.00055068,120]
[321439171,1712190691171,-580.93,0.00055068,120]
[321439172,1712190691181,-500.0,0.00055068,120]
[321439173,1712190691191,-2171.28,0.00055068,120]
[321439174,1712190691201,-500.0,0.00055068,120]
[321439175,1712190691210,-500.0,0.00055068,120]
[321439176,1712190691219,-500.0,0.00055068,120]
[321439177,1712190691229,-500.0,0.00055068,120]
[321439178,1712190691238,-518.58663951,0.00055068,120]
[321439179,1712190691248,-500.0,0.00055068,120]
[321439180,1712190691258,-500.0,0.00055068,120]
[321439181,1712190691269,-525.4561617,0.00055068,120]
[321439182,1712190691279,-500.0,0.00055068,120]
[321439183,1712190691290,-500.0,0.00055068,120]
[321439184,1712190691300,-500.0,0.00055068,120]
[321439185,1712190691309,-511.4,0.00055068,120]
[321439186,1712190691319,-509.58466675,0.00055068,120]
[321439187,1712190691328,-504.9582754,0.00055068,120]
[321439188,1712190691338,-500.0,0.00055068,120]
[321439189,1712190691347,-500.0,0.00055068,120]
[321439190,1712190691356,-510.05363765,0.00055068,120]
[321439191,1712190691367,-500.0,0.00055068,120]
[321439192,1712190691376,-500.0,0.00055068,120]
[321439193,1712190691386,-500.0,0.00055068,120]
[321439194,1712190691395,-500.0,0.00055068,120]
[321439195,1712190691405,-500.0,0.00055068,120]
[321439196,1712190691415,-647.29,0.00055068,120]
[321439197,1712190691424,-407.46717886,0.00055068,120]
[321439198,1712190691434,-500.0,0.00055068,120]
[321439199,1712190691443,-517.35786485,0.00055068,120]
[321439200,1712190691452,-500.0,0.00055068,120]
[321439201,1712190691461,-509.42136009,0.00055068,120]
[321439202,1712190691470,-500.0,0.00055068,120]
[321439203,1712190691480,-624.35,0.00055068,120]
[321439204,1712190691489,-500.0,0.00055068,120]
[321439205,1712190691498,-530.63469452,0.00055068,120]
[321439206,1712190691507,-527.73850559,0.00055068,120]
[321439207,1712190691517,-500.0,0.00055068,120]
[321439208,1712190691526,-500.0,0.00055068,120]
[321439209,1712190691535,-510.27,0.00055068,120]
[321439210,1712190691545,-500.0,0.00055068,120]
[321439211,1712190691555,-500.0,0.00055068,120]
[321439212,1712190691564,-500.0,0.00055068,120]
[321439213,1712190691574,-500.0,0.00055068,120]
[321439214,1712190691658,-500.0,0.00055068,120]
[321439215,1712190691667,-593.44,0.00055068,120]
[321439216,1712190691677,-500.0,0.00055068,120]
[321439217,1712190691686,-500.0,0.00055068,120]
[321439218,1712190691695,-561.42,0.00055068,120]
[321439219,1712190691705,-510.09631187,0.00055068,120]
[321439220,1712190691714,-500.0,0.00055068,120]
[321439221,1712190691723,-500.0,0.00055068,120]
[321439222,1712190691733,-500.0,0.00055068,120]
[321439223,1712190691742,-500.0,0.00055068,120]
[321439224,1712190691751,-507.17787153,0.00055068,120]
[321439225,1712190691760,-564.29,0.00055068,120]
[321439226,1712190691769,-500.0,0.00055068,120]
[321439227,1712190691778,-500.0,0.00055068,120]
[321439228,1712190691788,-510.01,0.00055068,120]
[321439229,1712190691798,-531.05227138,0.00055068,120]
[321439230,1712190691807,-529.46754812,0.00055068,120]
[321439231,1712190691816,-500.0,0.00055068,120]
[321439232,1712190691826,-500.0,0.00055068,120]
[321439233,1712190691836,-318.9757785,0.00055068,120]
[321439234,1712190691845,-459.38631985,0.00055068,120]
[321439235,1712190691854,-500.0,0.00055068,120]
[321439236,1712190691863,-500.0,0.00055068,120]
[321439237,1712190691872,-535.89,0.00055068,120]
[321439238,1712190691881,-500.0,0.00055068,120]
[321439239,1712190691891,-500.0,0.00055068,120]
[321439240,1712190691900,-651.69,0.00055068,120]
[321439241,1712190691909,-500.0,0.00055068,120]
[321439242,1712190691919,-500.0,0.00055068,120]
[321439243,1712190691928,-500.0,0.00055068,120]
[321439244,1712190691937,-500.0,0.00055068,120]
[321439245,1712190691946,-500.0,0.00055068,120]
[321439246,1712190691956,-500.0,0.00055068,120]
[321439247,1712190691966,-626.94,0.00055068,120]
[321439248,1712190691975,-500.0,0.00055068,120]
[321439249,1712190691984,-531.01,0.00055068,120]
[321439250,1712190691993,-500.0,0.00055068,120]
[321439251,1712190692002,-500.0,0.00055068,120]
[321439252,1712190692011,-500.0,0.00055068,120]
[321439253,1712190692021,-500.0,0.00055068,120]
[321439254,1712190692030,-500.0,0.00055068,120]
[321439255,1712190692039,-500.0,0.00055068,120]
[321439256,1712190692049,-150.0,0.00055068,120]
[321439257,1712190692058,-500.0,0.00055068,120]
[321439258,1712190692067,-500.0,0.00055068,120]
[321439259,1712190692080,-509.1,0.00055068,120]
[321439260,1712190692089,-724.1,0.00055068,120]
[321439261,1712190692098,-500.0,0.00055068,120]
[321439262,1712190692108,-506.930914,0.00055068,120]
[321439263,1712190692119,-581.55210061,0.00055068,120]
[321439264,1712190692129,-536.99,0.00055068,120]
[321439265,1712190692138,-500.0,0.00055068,120]
[321439266,1712190692148,-500.0,0.00055068,120]
[321439267,1712190692157,-500.0,0.00055068,120]
[321439268,1712190692167,-500.0,0.00055068,120]
[321439269,1712190692176,-500.0,0.00055068,120]
[321439270,1712190692185,-500.0,0.00055068,120]
[321439271,1712190692195,-500.0,0.00055068,120]
[321439272,1712190692204,-500.0,0.00055068,120]
[321439273,1712190692214,-499.87416436,0.00055068,120]
[321439274,1712190692223,-500.0,0.00055068,120]
[321439275,1712190692233,-534.80857053,0.00055068,120]
[321439276,1712190692242,-500.0,0.00055068,120]
[321439277,1712190692251,-635.83,0.00055068,120]
[321439278,1712190692261,-500.0,0.00055068,120]
[321439279,1712190692270,-507.44976454,0.00055068,120]
[321439280,1712190692279,-701.21,0.00055068,120]
[321439281,1712190692289,-500.0,0.00055068,120]
[321439282,1712190692299,-500.0,0.00055068,120]
[321439283,1712190692309,-500.0,0.00055068,120]
[321439284,1712190692318,-500.0,0.00055068,120]
[321439285,1712190692327,-928.84,0.00055068,120]
[321439286,1712190692337,-506.79840691,0.00055068,120]
[321439287,1712190692346,-500.0,0.00055068,120]
[321439288,1712190692356,-606.8458915,0.00055068,120]
[321439289,1712190692367,-500.0,0.00055068,120]
[321439290,1712190692376,-532.69301225,0.00055068,120]
[321439291,1712190692386,-500.0,0.00055068,120]
[321439292,1712190692396,-500.0,0.00055068,120]
[321439293,1712190692405,-500.0,0.00055068,120]
[321439294,1712190692415,-500.0,0.00055068,120]
[321439295,1712190692425,-509.96889614,0.00055068,120]
[321439296,1712190692435,-500.0,0.00055068,120]
[321439297,1712190692445,-500.0,0.00055068,120]
[321439298,1712190692454,-500.0,0.00055068,120]
[321439299,1712190692464,-500.0,0.00055068,120]
[321439300,1712190692474,-500.0,0.00055068,120]
[321439301,1712190692484,-500.0,0.00055068,120]
[321439302,1712190692494,-1101.57,0.00055068,120]
[321439303,1712190692504,-1277.23,0.00055068,120]
[321439304,1712190692513,-500.0,0.00055068,120]
[321439305,1712190692523,-559.74,0.00055068,120]
[321439306,1712190692533,-500.0,0.00055068,120]
[321439307,1712190692542,-500.0,0.00055068,120]
[321439308,1712190692552,-1000.0,0.00055068,120]
[321439309,1712190692561,-500.0,0.00055068,120]
[321439310,1712190692571,-500.0,0.00055068,120]
[321439311,1712190692581,-1119.45,0.00055068,120]
[321439312,1712190692590,-500.0,0.00055068,120]
[321439313,1712190692600,-509.62182537,0.00055068,120]
[321439314,1712190692609,-500.0,0.00055068,120]
[321439315,1712190692621,-500.0,0.00055068,120]
[321439316,1712190692630,-1429.76,0.00055068,120]
[321439317,1712190692639,-500.0,0.00055068,120]
[321439318,1712190692649,-791.83,0.00055068,120]
[321439319,1712190692658,-500.0,0.00055068,120]
[321439320,1712190692668,-500.0,0.00055068,120]
[321439321,1712190692678,-688.85,0.00055068,120]
[321439322,1712190692687,-257.62952995,0.00055068,120]
[321439323,1712190692697,-666.67,0.00055068,120]
[321439324,1712190692708,-500.0,0.00055068,120]
[321439325,1712190692717,-618.43,0.00055068,120]
[321439326,1712190692727,-500.0,0.00055068,120]
[321439327,1712190692737,-514.2,0.00055068,120]
[321439328,1712190692747,-500.0,0.00055068,120]
[321439329,1712190692757,-500.0,0.00055068,120]
[321439330,1712190692766,-1099.54,0.00055068,120]
[321439331,1712190692777,-500.0,0.00055068,120]
[321439332,1712190692786,-500.0,0.00055068,120]
[321439333,1712190692796,-500.0,0.00055068,120]
[321439334,1712190692807,-500.0,0.00055068,120]
[321439335,1712190692816,-500.0,0.00055068,120]
[321439336,1712190692826,-500.0,0.00055068,120]
[321439337,1712190692836,-512.16,0.00055068,120]
[321439338,1712190692846,-734.12,0.00055068,120]
[321439339,1712190692855,-511.86150484,0.00055068,120]
[321439340,1712190692867,-500.0,0.00055068,120]
[321439341,1712190692877,-500.0,0.00055068,120]
[321439342,1712190692886,-952.04,0.00055068,120]
[321439343,1712190692896,-1210.63,0.00055068,120]
[321439344,1712190692906,-500.0,0.00055068,120]
[321439345,1712190692917,-472.76347994,0.00055068,120]
[321439346,1712190692927,-500.0,0.00055068,120]
[321439347,1712190692937,-1171.81,0.00055068,120]
[321439348,1712190692946,-500.0,0.00055068,120]
[321439349,1712190692956,-1211.72,0.00055068,120]
[321439350,1712190692966,-500.0,0.00055068,120]
[321439351,1712190692975,-501.6,0.00055068,120]
[321439352,1712190692984,-500.0,0.00055068,120]
[321439353,1712190692993,-500.0,0.00055068,120]
[321439354,1712190693003,-519.4372683,0.00055068,120]
[321439355,1712190693012,-500.0,0.00055068,120]
[321439356,1712190693021,-500.0,0.00055068,120]
[321439357,1712190693031,-631.33,0.00055068,120]
[321439358,1712190693040,-543.81,0.00055068,120]
[321439359,1712190693050,-500.0,0.00055068,120]
[321439360,1712190693059,-533.2,0.00055068,120]
[321439361,1712190693069,-500.0,0.00055068,120]
[321439362,1712190693082,-1209.28,0.00055068,120]
[321439363,1712190693091,-1576.5,0.00055068,120]
[321439364,1712190693101,-500.0,0.00055068,120]
[321439365,1712190693110,-500.0,0.00055068,120]
[321439366,1712190693122,-500.0,0.00055068,120]
[321439367,1712190693131,-579.99,0.00055068,120]
[321439368,1712190693141,-500.0,0.00055068,120]
[321439369,1712190693150,-500.0,0.00055068,120]
[321439370,1712190693159,-875.72,0.00055068,2]
[321439371,1712190693169,-960.97,0.00055068,120]
[321439372,1712190693179,-890.32,0.00055068,120]
[321439373,1712190693188,-935.91,0.00055068,120]
[321439374,1712190693198,-500.0,0.00055068,120]
[321439375,1712190693207,-500.0,0.00055068,120]
[321439376,1712190693217,-550.32,0.00055068,120]
[321439377,1712190693226,-906.84,0.00055068,120]
[321439378,1712190693236,-1009.55,0.00055068,120]
[321439379,1712190693246,-500.0,0.00055068,2]
[321439380,1712190693255,-1038.27,0.00055068,120]
[321439381,1712190693264,-500.0,0.00055068,120]
[321439382,1712190693274,-1184.33,0.00055068,120]
[321439383,1712190693283,-500.0,0.00055068,120]
[321439384,1712190693293,-2498.55,0.00055068,120]
[321439385,1712190693302,-500.0,0.00055068,120]
[321439386,1712190693312,-510.95987601,0.00055068,120]
[321439387,1712190693322,-529.86620064,0.00055068,120]
[321439388,1712190693332,-3000.0,0.00055068,120]
[321439389,1712190693341,-500.0,0.00055068,120]
[321439390,1712190693351,-500.0,0.00055068,120]
[321439391,1712190693360,-500.0,0.00055068,120]
[321439392,1712190693370,-1115.69,0.00055068,120]
[321439393,1712190693379,-977.94,0.00055068,120]
[321439394,1712190693389,-982.66,0.00055068,120]
[321439395,1712190693399,-500.0,0.00055068,120]
[321439396,1712190693408,-301.65252592,0.00055068,120]
[321439397,1712190693417,-500.0,0.00055068,120]
[321439398,1712190693427,-500.0,0.00055068,120]
[321439399,1712190693436,-1277.94,0.00055068,120]
[321439400,1712190693445,-693.26,0.00055068,120]
[321439401,1712190693455,-500.0,0.00055068,120]
[321439402,1712190693464,-514.30272462,0.00055068,120]
[321439403,1712190693474,-464.16052769,0.00055068,120]
[321439404,1712190693483,-500.0,0.00055068,120]
[321439405,1712190693492,-959.52,0.00055068,120]
[321439406,1712190693502,-500.0,0.00055068,120]
[321439407,1712190693512,-500.0,0.00055068,120]
[321439408,1712190693521,-965.12,0.00055068,120]
[321439409,1712190693534,-1115.54,0.00055068,120]
[321439410,1712190693544,-500.0,0.00055068,120]
[321439411,1712190693553,-500.0,0.00055068,120]
[321439412,1712190693563,-500.0,0.00055068,120]
[321439413,1712190693572,-500.0,0.00055068,120]
[321439414,1712190693582,-500.0,0.00055068,120]
[321439415,1712190693591,-500.0,0.00055068,30]
[321439416,1712190693601,-500.0,0.00055068,120]
[321439417,1712190693611,-500.0,0.00055068,120]
[321439418,1712190693622,-500.0,0.00055068,120]
[321439419,1712190693632,-500.0,0.00055068,120]
[321439420,1712190693642,-500.0,0.00055068,120]
[321439421,1712190693651,-500.0,0.00055068,120]
[321439422,1712190693661,-500.0,0.00055068,120]
[321439423,1712190693670,-2796.11,0.00055068,120]
[321439424,1712190693680,-500.0,0.00055068,120]
[321439425,1712190693690,-377.24760351,0.00055068,120]
[321439426,1712190693700,-518.42185586,0.00055068,120]
[321439427,1712190693709,-703.57,0.00055068,120]
[321439428,1712190693719,-1215.43,0.00055068,120]
[321439429,1712190693729,-500.0,0.00055068,120]
[321439430,1712190693738,-500.0,0.00055068,120]
[321439431,1712190693748,-500.0,0.00055068,120]
[321439432,1712190693758,-500.0,0.00055068,120]
[321439433,1712190693767,-1411.34,0.00055068,120]
[321439434,1712190693777,-500.0,0.00055068,120]
[321439435,1712190693787,-500.0,0.00055068,120]
[321439436,1712190693797,-865.98,0.00055068,120]
[321439437,1712190693806,-1132.35,0.00055068,120]
[321439438,1712190693815,-500.0,0.00055068,120]
[321439439,1712190693825,-593.63,0.00055068,120]
[321439440,1712190693834,-500.0,0.00055068,120]
[321439441,1712190693844,-500.0,0.00055068,120]
[321439442,1712190693854,-500.0,0.00055068,120]
[321439443,1712190693864,-1282.32,0.00055068,120]
[321439444,1712190693874,-500.0,0.00055068,120]
[321439445,1712190693883,-523.23000406,0.00055068,120]
[321439446,1712190693892,-500.0,0.00055068,120]
[321439447,1712190693902,-500.0,0.00055068,120]
[321439448,1712190693912,-1154.7,0.00055068,120]
[321439449,1712190693922,-500.0,0.00055068,120]
[321439450,1712190693931,-1054.98,0.00055068,120]
[321439451,1712190693941,-636.66,0.00055068,120]
[321439452,1712190693950,-1332.56,0.00055068,120]
[321439453,1712190693960,-500.0,0.00055068,120]
[321439454,1712190693969,-910.81,0.00055068,80]
[321439455,1712190693979,-1091.91,0.00055068,120]
[321439456,1712190693988,-500.0,0.00055068,120]
[321439457,1712190693998,-500.0,0.00055068,120]
[321439458,1712190694008,-500.0,0.00055068,120]
[321439459,1712190694018,-1121.37,0.00055068,120]
[321439460,1712190694027,-500.0,0.00055068,120]
[321439461,1712190694037,-1283.08,0.00055068,120]
[321439462,1712190694046,-500.0,0.00055068,120]
[321439463,1712190694056,-500.0,0.00055068,120]
[321439464,1712190694066,-699.93,0.00055068,120]
[321439465,1712190694079,-500.0,0.00055068,120]
[321439466,1712190694088,-1032.42,0.00055068,120]
[321439467,1712190694098,-500.0,0.00055068,120]
[321439468,1712190694108,-500.0,0.00055068,120]
[321439469,1712190694118,-500.0,0.00055068,120]
[321439470,1712190694128,-1816.42,0.00055068,120]
[321439471,1712190694137,-1753.93,0.00055068,120]
[321439472,1712190694147,-576.72012065,0.00055068,120]
[321439473,1712190694157,-500.0,0.00055068,120]
[321439474,1712190694166,-500.0,0.00055068,120]
[321439475,1712190694176,-2410.37,0.00055068,120]
[321439476,1712190694185,-1401.23,0.00055068,120]
[321439477,1712190694195,-1098.35,0.00055068,120]
[321439478,1712190694205,-603.08,0.00055068,120]
[321439479,1712190694215,-500.0,0.00055068,120]
[321439480,1712190694224,-500.0,0.00055068,120]
[321439481,1712190694234,-500.0,0.00055068,120]
[321439482,1712190694244,-500.0,0.00055068,120]
[321439483,1712190694253,-954.31,0.00055068,120]
[321439484,1712190694263,-500.0,0.00055068,120]
[321439485,1712190694273,-500.0,0.00055068,120]
[321439486,1712190694282,-225.08643337,0.00055068,120]
[321439487,1712190694292,-1622.05,0.00055068,120]
[321439488,1712190694301,-1774.24,0.00055068,120]
[321439489,1712190694311,-500.0,0.00055068,120]
[321439490,1712190694320,-500.0,0.00055068,120]
[321439491,1712190694330,-500.0,0.00055068,120]
[321439492,1712190694340,-1556.91,0.00055068,120]
[321439493,1712190694350,-435.61618419,0.00055068,120]
[321439494,1712190694360,-909.87,0.00055068,120]
[321439495,1712190694370,-500.0,0.00055068,120]
[321439496,1712190694380,-500.0,0.00055068,120]
[321439497,1712190694390,-500.0,0.00055068,120]
[321439498,1712190694399,-500.0,0.00055068,120]
[321439499,1712190694410,-428.47316905,0.00055068,120]
[321439500,1712190694419,-500.0,0.00055068,120]
[321439501,1712190694429,-600.06,0.00055068,120]
[321439502,1712190694439,-676.42,0.00055068,120]
[321439503,1712190694449,-500.0,0.00055068,60]
[321439504,1712190694459,-2958.64,0.00055068,120]
[321439505,1712190694470,-500.0,0.00055068,120]
[321439506,1712190694479,-715.45,0.00055068,120]
[321439507,1712190694489,-500.0,0.00055068,120]
[321439508,1712190694678,-897.57,0.00055068,120]
[321439509,1712190694688,-504.49866579,0.00055068,120]
[321439510,1712190694697,-523.84939388,0.00055068,120]
[321439511,1712190694706,-504.16728703,0.00055068,120]
[321439512,1712190694715,-500.0,0.00055068,120]
[321439513,1712190694724,-538.34822019,0.00055068,120]
[321439514,1712190694733,-1288.54,0.00055068,120]
[321439515,1712190694743,-737.72,0.00055068,120]
[321439516,1712190694752,-786.57,0.00055068,120]
[321439517,1712190694762,-500.0,0.00055068,120]
[321439518,1712190694771,-500.0,0.00055068,120]
[321439519,1712190694780,-938.87,0.00055068,120]
[321439520,1712190694789,-500.0,0.00055068,120]
[321439521,1712190694798,-500.0,0.00055068,120]
[321439522,1712190694807,-500.0,0.00055068,120]
[321439523,1712190694816,-500.0,0.00055068,120]
[321439524,1712190694825,-500.0,0.00055068,120]
[321439525,1712190694834,-520.22027547,0.00055068,120]
[321439526,1712190694843,-500.0,0.00055068,120]
[321439527,1712190694853,-500.0,0.00055068,120]
[321439528,1712190694862,-500.0,0.00055068,120]
[321439529,1712190694873,-500.0,0.00055068,2]
[321439530,1712190694882,-500.0,0.00055068,120]
[321439531,1712190694892,-500.0,0.00055068,120]
[321439532,1712190694901,-516.96321479,0.00055068,120]
[321439533,1712190694910,-1930.97,0.00055068,120]
[321439534,1712190694920,-500.0,0.00055068,120]
[321439535,1712190694929,-500.0,0.00055068,120]
[321439536,1712190694938,-509.59029529,0.00055068,120]
[321439537,1712190694947,-500.0,0.00055068,120]
[321439538,1712190694956,-500.0,0.00055068,120]
[321439539,1712190694966,-500.0,0.00055068,120]
[321439540,1712190694975,-500.0,0.00055068,120]
[321439541,1712190694984,-1180.17,0.00055068,30]
[321439542,1712190694993,-700.82,0.00055068,120]
[321439543,1712190695002,-500.0,0.00055068,120]
[321439544,1712190695013,-1176.41,0.00055068,120]
[321439545,1712190695022,-500.0,0.00055068,120]
[321439546,1712190695031,-512.50681077,0.00055068,120]
[321439547,1712190695041,-500.0,0.00055068,120]
[321439548,1712190695050,-533.22443984,0.00055068,120]
[321439549,1712190695059,-1120.92,0.00055068,120]
[321439550,1712190695069,-500.0,0.00055068,120]
[321439551,1712190695081,-536.99412286,0.00055068,120]
[321439552,1712190695090,-500.0,0.00055068,120]
[321439553,1712190695100,-500.0,0.00055068,120]
[321439554,1712190695110,-529.49,0.00055068,120]
[321439555,1712190695122,-1238.44,0.00055068,120]
[321439556,1712190695131,-954.95,0.00055068,120]
[321439557,1712190695141,-500.0,0.00055068,120]
[321439558,1712190695152,-500.0,0.00055068,120]
[321439559,1712190695161,-1084.08,0.00055068,120]
[321439560,1712190695170,-500.0,0.00055068,120]
[321439561,1712190695180,-500.0,0.00055068,120]
[321439562,1712190695190,-500.0,0.00055068,120]